fUSD/lending_fUSD_20240211
["ID","MTS","AMOUNT","RATE_DAILY","PERIOD"]
[313748619,1707661838716,-5000.0,0.000228,2]
[313748620,1707661838726,-569.74568986,0.000228,2]
[313748621,1707661838735,-176.3546774,0.000228,2]
[313748622,1707661838745,-469.58087281,0.000228,2]
[313748623,1707661838755,-2287.0892977,0.000228,2]
[313748625,1707661838765,-1521.63002427,0.000228,2]
[313748627,1707661838774,-162.83781801,0.000228,2]
[313748629,1707661838784,-200.0,0.00022815,2]
[313748631,1707661838794,-200.0,0.00022815,2]
[313748632,1707661838803,-800.0,0.00022815,2]
[313748633,1707661838814,-200.0,0.00022815,2]
[313748634,1707661838824,-800.0,0.00022816,2]
[313748635,1707661838834,-307.71962097,0.00022825,2]
[313748636,1707661838843,-307.71962097,0.0002285,2]
[313748637,1707661838853,-569.74568984,0.0002285,2]
[313748638,1707661838862,-2287.08929768,0.0002285,2]
[313748639,1707661838871,-1521.63002427,0.0002285,2]
[313748640,1707661838881,-307.71962097,0.00022875,2]
[313748641,1707661838892,-1000.0,0.00022885,2]
[313748642,1707661838902,-1000.0,0.00022885,2]
[313748643,1707661838911,-1000.0,0.00022885,2]
[313748644,1707661838920,-1000.0,0.00022885,2]
[313748645,1707661838929,-1000.0,0.00022885,2]
[313748646,1707661838940,-1000.0,0.00022885,2]
[313748647,1707661838950,-1000.0,0.00022885,2]
[313748648,1707661838961,-1000.0,0.00022885,2]
[313748649,1707661838971,-1000.0,0.00022885,2]
[313748650,1707661838980,-1000.0,0.00022885,2]
[313748651,1707661838989,-1000.0,0.00022885,2]
[313748652,1707661838999,-1000.0,0.00022885,2]
[313748653,1707661839009,-1000.0,0.00022885,2]
[313748654,1707661839019,-1000.0,0.00022885,2]
[313748655,1707661839030,-1000.0,0.00022885,2]
[313748656,1707661839040,-1000.0,0.00022885,2]
[313748657,1707661839050,-1000.0,0.00022885,2]
[313748658,1707661839065,-1000.0,0.00022885,2]
[313748659,1707661839075,-1000.0,0.00022885,2]
[313748660,1707661839091,-1000.0,0.00022885,2]
[313748661,1707661839100,-1000.0,0.00022885,2]
[313748662,1707661839111,-1000.0,0.00022885,2]
[313748663,1707661839123,-1000.0,0.00022885,2]
[313748664,1707661839135,-1000.0,0.00022885,2]
[313748665,1707661839145,-1000.0,0.00022885,2]
[313748666,1707661839155,-1000.0,0.00022885,2]
[313748667,1707661839166,-1000.0,0.00022885,2]
[313748668,1707661839177,-1000.0,0.00022885,2]
[313748669,1707661839187,-1000.0,0.00022885,2]
[313748670,1707661839197,-674.2948,0.00022885,2]
[313748671,1707661839207,-617.704,0.00022885,2]
[313748672,1707661839217,-500.0,0.00022898,2]
[313748673,1707661839226,-548.36818583,0.00022898,2]
[313748674,1707661839236,-64405.9796,0.00022899,2]
[313748675,1707661839245,-210.0,0.00022899,2]
[313748676,1707661839256,-178.38782152,0.00022899,2]
[313748677,1707661839265,-500.0,0.00022899,2]
[313748678,1707661839275,-500.0,0.00022899,2]
[313748679,1707661839284,-513.22746103,0.00022899,2]
[313748680,1707661839294,-255.42791169,0.00022899,2]
[313748681,1707661839304,-188.89381454,0.000229,3]
[313748682,1707661839314,-749648.14023528,0.000229,2]
[313748683,1707661839324,-178.38782152,0.000229,2]
[313748684,1707661839338,-16320.01808526,0.000229,2]
[313748685,1707661839348,-58000.0,0.000229,2]
[313748686,1707661839358,-1107396.65266246,0.000229,4]
[313748687,1707661839368,-162.41394199,0.000229,2]
[313748688,1707661839378,-307.71962097,0.000229,2]
[313748689,1707661839388,-199.32367205,0.000229,2]
[313748690,1707661839397,-569.74568984,0.000229,2]
[313748691,1707661839408,-426.62971932,0.000229,6]
[313748692,1707661839418,-2287.08929768,0.000229,2]
[313748693,1707661839427,-152.28,0.0002294,2]
[313748694,1707661839438,-355.95779342,0.00022996,2]
[313748695,1707661839448,-231.24360725,0.00022996,2]
[313748696,1707661839458,-234.87008297,0.00022996,2]
[313748697,1707661839469,-247.40585287,0.00022996,2]
[313748698,1707661839479,-203.66449039,0.00022996,2]
[313748699,1707661839489,-1053.34867801,0.00022996,2]
[313748700,1707661839499,-699.73561086,0.00022997,2]
[313748701,1707661839509,-3159.10290502,0.00022997,2]
[313748702,1707661839519,-1316.08401316,0.00022997,2]
[313748703,1707661839529,-2912.99141125,0.00022997,2]
[313748704,1707661839539,-245.51882424,0.00022997,2]
[313748705,1707661839549,-213.20006558,0.00022997,2]
[313748706,1707661839559,-155.0,0.00022997,2]
[313748707,1707661839569,-1407.04072604,0.00022997,2]
[313748708,1707661839579,-358.1604708,0.00022997,2]
[313748709,1707661839589,-216.04122801,0.00022997,2]
[313748710,1707661839603,-3210.812889,0.00022997,2]
[313748711,1707661839614,-145219.36501693,0.00022997,2]
[313748712,1707661839625,-157.50481465,0.00022997,2]
[313748713,1707661839635,-2339.42272343,0.00022997,2]
[313748714,1707661839645,-2000.0,0.00022998,2]
[313748715,1707661839656,-200.0,0.00022998,2]
[313748716,1707661839669,-365.17046565,0.00022999,2]
[313748717,1707661839680,-326668.74199771,0.00022999,2]
[313748718,1707661839693,-150.01,0.00022999,2]
[313748719,1707661839702,-3313.68237718,0.00022999,2]
[313748720,1707661839712,-468.96142728,0.00022999,2]
[313748721,1707661839724,-357.61870175,0.00022999,2]
[313748722,1707661839734,-385.64628155,0.00022999,2]
[313748723,1707661839744,-447.75650072,0.00022999,2]
[313748724,1707661839754,-375.90380562,0.00022999,2]
[313748725,1707661839765,-150.0,0.00022999,2]
[313748726,1707661839775,-150.0,0.00022999,2]
[313748727,1707661839785,-150.0,0.00022999,2]
[313748728,1707661839794,-150.0,0.00022999,2]
[313748729,1707661839804,-150.0,0.00022999,2]
[313748730,1707661839814,-150.0,0.00022999,2]
[313748731,1707661839824,-150.0,0.00022999,2]
[313748732,1707661839835,-150.0,0.00022999,2]
[313748733,1707661839845,-150.0,0.00022999,2]
[313748734,1707661839855,-150.0,0.00022999,2]
[313748735,1707661839865,-150.0,0.00022999,2]
[313748736,1707661839875,-150.0,0.00022999,2]
[313748737,1707661839885,-150.0,0.00022999,2]
[313748738,1707661839894,-150.0,0.00022999,2]
[313748739,1707661839906,-150.0,0.00022999,2]
[313748740,1707661839916,-150.0,0.00022999,2]
[313748741,1707661839925,-150.0,0.00022999,2]
[313748742,1707661839935,-150.0,0.00022999,2]
[313748743,1707661839946,-150.0,0.00022999,2]
[313748744,1707661839957,-176.98627561,0.00022999,2]
[313748745,1707661839968,-150.0,0.00022999,2]
[313748746,1707661839978,-150.0,0.00022999,2]
[313748747,1707661839987,-150.0,0.00022999,2]
[313748748,1707661839997,-150.0,0.00022999,2]
[313748749,1707661840007,-150.0,0.00022999,2]
[313748750,1707661840016,-202.53049988,0.00022999,2]
[313748751,1707661840026,-23399.20973246,0.00023,2]
[313748752,1707661840042,-39765.61083814,0.00023,2]
[313748755,1707661840870,-589.55763454,0.00022697,2]
[313748756,1707661840898,-180.97077737,0.00022697,2]
[313748757,1707661840907,-310.47902331,0.000229,2]
[313748758,1707661840920,-1211.15100096,0.000229,2]
[313748759,1707661840929,-2243.20338679,0.00023,2]
[313748760,1707661840942,-251.074,0.00023,2]
[313748761,1707661841507,-74116.44663181,0.00023,2]
[313748762,1707661841569,-1978.90521346,0.00023,2]
[313748763,1707661841582,-17822.95342947,0.00023,2]
[313748764,1707661841595,-2699.26563001,0.00023,2]
[313748765,1707661841608,-2605.45869688,0.00023,2]
[313748766,1707661841620,-13812.84730084,0.00023,2]
[313748767,1707661841738,-19878.31486046,0.00023,2]
[313748768,1707661841750,-2501.75482878,0.00023,2]
[313748769,1707661841772,-528.60538072,0.00023,2]
[313748818,1707661843562,-178.75326338,0.00022697,2]
[313748819,1707661843572,-30814.30755129,0.00023,2]
[313748820,1707661843588,-14320.29511712,0.00023,2]
[313748821,1707661843632,-2513.78625027,0.00023,2]
[313748822,1707661843669,-48195.94959227,0.00023,2]
[313748823,1707661843681,-999.13780481,0.00023,2]
[313748824,1707661843695,-600.66605365,0.00023,2]
[313748825,1707661843709,-833.79910387,0.00023,2]
[313748828,1707661846576,-156.06475516,0.00022899,2]
[313748830,1707661846589,-281.06237717,0.00022998,2]
[313748833,1707661846666,-31.01907675,0.00022998,2]
[313748834,1707661846679,-150.01,0.00022999,2]
[313748835,1707661846691,-286.40108436,0.00022999,2]
[313748836,1707661846706,-2722.55325948,0.00022999,2]
[313748837,1707661846718,-1268.13021052,0.00022999,2]
[313748838,1707661846733,-2045.55216666,0.00022999,2]
[313748839,1707661846745,-1012469.3406492,0.00023,2]
[313748840,1707661846782,-745.10582894,0.00023,2]
[313748841,1707661846797,-491.62526748,0.00023,2]
[313748842,1707661846812,-512.2726247,0.00023,2]
[313748843,1707661846826,-2521.33154629,0.00023,2]
[313748844,1707661846841,-2683.01266004,0.00023,2]
[313748845,1707661846861,-378.41523539,0.00023,2]
[313748846,1707661846876,-3809.65416847,0.00023,2]
[313748847,1707661846896,-3736.7819811,0.00023,2]
[313748848,1707661846911,-279.44002297,0.00023,2]
[313748849,1707661846926,-296.9414077,0.00023,2]
[313748850,1707661846963,-10058.4,0.00023,2]
[313748851,1707661846977,-1247.199999,0.00023,2]
[313748852,1707661846992,-7464.02625058,0.00023,2]
[313748853,1707661847006,-2999.99999999,0.00023,2]
[313748854,1707661847124,-11754.38442084,0.00023,2]
[313748855,1707661847139,-39989.07316658,0.00023,2]
[313748856,1707661847154,-4608.67713029,0.00023,2]
[313748857,1707661847171,-5233.73200614,0.00023,2]
[313748858,1707661847186,-1125.387,0.00023,2]
[313748859,1707661847252,-8383.44103302,0.00023,2]
[313748860,1707661847268,-534.0,0.00023,2]
[313748861,1707661847283,-3434.2710482,0.00023,2]
[313748862,1707661847298,-21289.68192894,0.00023,2]
[313748863,1707661861986,250.0,0.00022,2]
[313748864,1707661863292,250.0,0.00022274,2]
[313748865,1707661923043,271.12,0.00021721,2]
[313748866,1707662009997,177.2,0.00022,2]
[313748867,1707662016055,8153.9,0.00021975,2]
[313748868,1707662036125,500.0,0.00022,2]
[313748869,1707662041521,258.41,0.00022,2]
[313748870,1707662042798,258.41,0.00022137,2]
[313748871,1707662044080,516.22,0.00022274,2]
[313748872,1707662088903,156.93,0.00022038,2]
[313748873,1707662089328,156.93,0.00022153,2]
[313748874,1707662089562,156.93,0.00022268,2]
[313748875,1707662090321,156.93,0.00022383,2]
[313748876,1707662134161,171.55,0.00021749,2]
[313748877,1707662194353,534.82,0.00021677,2]
[313748878,1707662203045,165.72,0.00021677,2]
[313748879,1707662327722,2705.0,0.00021562,2]
[313748880,1707662335775,272.30182203,0.00022028,2]
[313748881,1707662338602,672.06,0.0002154,2]
[313748882,1707662345124,500.0,0.00021559,2]
[313748883,1707662347959,165.49690328,0.00021677,2]
[313748884,1707662351050,271.91012133,0.00022028,2]
[313748885,1707662379658,490.54,0.00019642,2]
[313748886,1707662379864,490.54,0.00021905,2]
[313748887,1707662413421,855.15,0.00021558,2]
[313748888,1707662468715,6823.7,0.00021555,2]
[313748890,1707662567734,9170.5433,0.0002238,2]
[313748891,1707662583860,206.0,0.00022119,2]
[313748892,1707662593918,157.27,0.00021712,2]
[313748893,1707662594331,157.27,0.00021854,2]
[313748894,1707662594741,157.27,0.00021995,2]
[313748895,1707662594956,157.27,0.00022137,2]
[313748896,1707662595198,157.27,0.00022278,2]
[313748897,1707662613100,250.0,0.00021918,2]
[313748898,1707662617246,1155.89,0.00021533,2]
[313748899,1707662647892,177.2,0.00021999,2]
[313748900,1707662676017,500.0,0.00021999,2]
[313748901,1707662710547,1712.2254,0.0002238,2]
[313748902,1707662748505,200.0,0.00021551,2]
[313748903,1707662782620,531.69250034,0.000224,2]
[313748904,1707662786036,216.71797193,0.000224,2]
[313748905,1707662796689,216.20314673,0.000224,2]
[313748906,1707662803025,358.4877294,0.000224,2]
[313748907,1707662803291,1408.28428995,0.000224,2]
[313748908,1707662803734,1142.56291216,0.000224,2]
[313748909,1707662806669,2794.8662989,0.000224,2]
[313748910,1707662807857,2606.19621168,0.000224,2]
[313748911,1707662808646,363.52229964,0.000224,2]
[313748912,1707662810986,231.3983886,0.000224,2]
[313748913,1707662812281,156.06475516,0.000224,2]
[313748914,1707662812759,770.52841191,0.000224,2]
[313748915,1707662815282,462.35,0.00021621,2]
[313748916,1707662817751,155.0,0.000224,2]
[313748917,1707662824126,2916.56350754,0.000224,2]
[313748918,1707662824577,5544.85639513,0.000224,2]
[313748919,1707662827322,2150.13332931,0.000224,2]
[313748920,1707662829756,284.25492609,0.000224,2]
[313748921,1707662866835,441.48,0.0001968,2]
[313748922,1707662866918,441.48,0.00021944,2]
[313748923,1707662873617,157.16324593,0.00022375,2]
[313748924,1707662873675,547.0,0.0003589,120]
[313748925,1707662919091,427.57,0.00021522,2]
[313748926,1707662931378,553.81,0.00021537,2]
[313748927,1707662931510,358.4877294,0.000224,2]
[313748928,1707662953932,204.10845599,0.000224,2]
[313748929,1707662955909,503.96228903,0.000224,2]
[313748930,1707662956769,284.25492609,0.000224,2]
[313748931,1707662957086,178.75326338,0.000224,2]
[313748932,1707662959853,2606.19621168,0.000224,2]
[313748933,1707662962912,2916.56350754,0.000224,2]
[313748937,1707662979676,5686.41,0.00021561,2]
[313748949,1707663031360,-531.69250034,0.00022405,2]
[313748950,1707663031370,-157.16324578,0.00022406,2]
[313748951,1707663031379,-157.27,0.00022419,2]
[313748952,1707663031388,-216.50171311,0.00022429,2]
[313748953,1707663031398,-157.16324578,0.00022437,2]
[313748954,1707663031406,-157.16324578,0.00022467,2]
[313748955,1707663031416,-150.0,0.00022474,2]
[313748956,1707663031428,-727.7,0.00022475,2]
[313748957,1707663031437,-7932.18,0.00022475,2]
[313748958,1707663031447,-3945.68429302,0.00022477,2]
[313748959,1707663031458,-464.24685184,0.00022477,2]
[313748960,1707663031487,-4347.8,0.00022477,2]
[313748961,1707663031498,-518.5775685,0.00022477,2]
[313748962,1707663031523,-6188.01314544,0.00022477,2]
[313748963,1707663031532,-293.64749083,0.00022478,2]
[313748964,1707663031541,-225.88929481,0.00022478,2]
[313748965,1707663031551,-215.87930929,0.00022478,2]
[313748966,1707663031560,-1144.3136426,0.00022478,2]
[313748967,1707663031569,-303.21274241,0.00022478,2]
[313748968,1707663031578,-911.28104243,0.00022478,2]
[313748969,1707663031587,-249.22433074,0.00022478,2]
[313748970,1707663031597,-2690.30960849,0.00022478,2]
[313748971,1707663031606,-231.02997375,0.00022478,2]
[313748972,1707663031615,-385.82837124,0.00022478,2]
[313748973,1707663031625,-157.18120035,0.00022478,2]
[313748974,1707663031634,-617.73515854,0.00022478,2]
[313748975,1707663031644,-2138.9227066,0.00022478,2]
[313748976,1707663031653,-483.42914929,0.00022478,2]
[313748977,1707663031663,-262.91683206,0.00022478,2]
[313748978,1707663031673,-203.50750251,0.00022478,2]
[313748979,1707663031681,-1519.40283713,0.00022478,2]
[313748980,1707663031691,-513.3675182,0.00022478,2]
[313748982,1707663031701,-1872.17672382,0.00022478,2]
[313748984,1707663031710,-286.17157154,0.00022478,2]
[313748986,1707663031719,-734.07,0.00022478,2]
[313748988,1707663031728,-716.21,0.0002248,2]
[313748989,1707663031737,-185271.22143714,0.0002248,2]
[313748991,1707663031747,-499.99,0.0002248,2]
[313748993,1707663031756,-2710.83,0.0002248,2]
[313748995,1707663031765,-730.55,0.00022483,2]
[313748997,1707663031774,-720.09,0.00022486,2]
[313748998,1707663031783,-714.58,0.00022488,2]
[313748999,1707663031793,-715.76,0.0002249,2]
[313749000,1707663031803,-713.99,0.00022491,2]
[313749001,1707663031813,-157.16324578,0.00022498,2]
[313749002,1707663031823,-2542.0896,0.00022499,2]
[313749003,1707663031832,-20036.007,0.00022499,2]
[313749004,1707663031843,-190830.455,0.000225,2]
[313749005,1707663031853,-157.16324578,0.00022529,2]
[313749006,1707663031862,-177.2,0.00022547,2]
[313749007,1707663031872,-787.66706975,0.00022547,2]
[313749008,1707663031882,-1304.65611603,0.00022552,2]
[313749009,1707663031891,-157.16324578,0.0002256,2]
[313749010,1707663031900,-157.27,0.00022561,2]
[313749011,1707663031910,-157.16324578,0.0002259,2]
[313749012,1707663031919,-100000.0,0.00022599,2]
[313749013,1707663031928,-8559.5939,0.00022599,2]
[313749014,1707663031938,-417.1433,0.00022599,2]
[313749015,1707663031947,-539.95398608,0.00022601,2]
[313749016,1707663031956,-165.3455362,0.00022602,2]
[313749017,1707663031966,-553.81,0.00022613,2]
[313749018,1707663031975,-157.16324578,0.00022621,2]
[313749019,1707663031984,-157.16324578,0.00022652,2]
[313749020,1707663031994,-157.16324578,0.00022683,2]
[313749021,1707663032003,-161.57006629,0.00022689,2]
[313749022,1707663032012,-2339.42272343,0.00022697,2]
[313749023,1707663032021,-157.50481465,0.00022697,2]
[313749024,1707663032031,-699.73561086,0.00022697,2]
[313749025,1707663032040,-155.40634064,0.00022697,2]
[313749026,1707663032049,-355.95779342,0.00022697,2]
[313749027,1707663032059,-156.45030651,0.00022697,2]
[313749028,1707663032068,-155.20561077,0.00022697,2]
[313749029,1707663032077,-630.8527813,0.00022697,2]
[313749030,1707663032087,-234.87008297,0.00022697,2]
[313749031,1707663032096,-155.0,0.00022697,2]
[313749032,1707663032105,-290.3213485,0.00022697,2]
[313749033,1707663032115,-525.46610018,0.00022697,2]
[313749034,1707663032124,-2207.57126156,0.00022697,2]
[313749035,1707663032134,-1053.34867801,0.00022697,2]
[313749036,1707663032143,-247.40585287,0.00022697,2]
[313749037,1707663032152,-3210.812889,0.00022697,2]
[313749038,1707663032161,-245.51882424,0.00022697,2]
[313749039,1707663032170,-155.0,0.00022697,2]
[313749040,1707663032179,-213.20006558,0.00022697,2]
[313749041,1707663032191,-156.08872045,0.00022697,2]
[313749042,1707663032199,-995.89,0.00022697,2]
[313749043,1707663032208,-3159.10290502,0.00022697,2]
[313749044,1707663032217,-155.0,0.00022697,2]
[313749045,1707663032227,-155.32923141,0.00022697,2]
[313749046,1707663032236,-161.05937526,0.00022697,2]
[313749047,1707663032245,-169.18733677,0.00022697,2]
[313749048,1707663032254,-376.66029606,0.00022697,2]
[313749049,1707663032264,-246.07154457,0.00022697,2]
[313749050,1707663032273,-200.0,0.00022697,2]
[313749051,1707663032282,-1091.53953186,0.00022697,2]
[313749052,1707663032290,-140898.28362702,0.00022699,2]
[313749053,1707663032304,-647.80435642,0.00022699,2]
[313749054,1707663032320,-8764.17593795,0.00022699,2]
[313749055,1707663032333,-4065.70671498,0.00022699,2]
[313749056,1707663032344,-457.68215425,0.00022699,2]
[313749057,1707663032355,-5669.76253763,0.00022699,2]
[313749058,1707663032380,-16682.83085426,0.00022699,2]
[313749059,1707663032411,-787.62779356,0.00022699,2]
[313749065,1707663037487,-412.86754714,0.00022699,2]
[313749066,1707663037498,-754.12260639,0.00022699,2]
[313749067,1707663037510,-460.46288251,0.00022699,2]
[313749068,1707663037546,-3461.11324065,0.00022699,2]
[313749069,1707663037598,-61937.55974724,0.00022699,2]
[313749070,1707663037608,-157.27,0.00022702,2]
[313749071,1707663037618,-157.16324578,0.00022713,2]
[313749072,1707663037627,-157.16324578,0.00022744,2]
[313749073,1707663037636,-539.95398607,0.00022751,2]
[313749074,1707663037645,-248.17784,0.00022768,2]
[313749075,1707663037654,-157.16324578,0.00022775,2]
[313749076,1707663037663,-165.34553619,0.00022801,2]
[313749077,1707663037673,-157.16324578,0.00022806,2]
[313749078,1707663037684,-206.375397,0.00022815,2]
[313749079,1707663037695,-200.0,0.00022816,2]
[313749080,1707663037706,-200.0,0.00022816,2]
[313749081,1707663037716,-800.0,0.00022816,2]
[313749082,1707663037726,-157.16324578,0.00022836,2]
[313749083,1707663037735,-157.27,0.00022844,2]
[313749084,1707663037744,-157.16324578,0.00022867,2]
[313749085,1707663037756,-5000.0,0.00022896,2]
[313749087,1707663037765,-2452.8327429,0.00022898,2]
[313749089,1707663037774,-295.22116608,0.00022898,2]
[313749091,1707663037783,-196.40248034,0.00022898,2]
[313749093,1707663037793,-157.16324578,0.00022898,2]
[313749095,1707663037802,-181.30485837,0.00022898,4]
[313749097,1707663037811,-3588.35495392,0.00022899,2]
[313749099,1707663037820,-179.2039707,0.00022899,2]
[313749101,1707663037830,-2452.8327429,0.00022899,2]
[313749103,1707663037840,-295.22116606,0.00022899,2]
[313749105,1707663037849,-12652.38267674,0.00022899,2]
[313749107,1707663037858,-183.8764334,0.00022899,2]
[313749109,1707663037867,-3588.35495387,0.00022899,2]
[313749111,1707663037877,-3588.35495387,0.00022899,2]
[313749113,1707663037886,-3588.35495387,0.00022899,2]
[313749115,1707663037896,-3588.35495387,0.00022899,2]
[313749117,1707663037905,-3588.35495387,0.00022899,2]
[313749119,1707663037915,-12652.38267672,0.000229,2]
[313749121,1707663037924,-3588.35495387,0.000229,2]
[313749123,1707663037934,-3588.35495387,0.000229,2]
[313749125,1707663037943,-3588.35495387,0.000229,2]
[313749127,1707663037952,-3588.35495387,0.000229,2]
[313749129,1707663037961,-3588.35495387,0.000229,2]
[313749131,1707663037971,-5714.50989452,0.000229,2]
[313749133,1707663037980,-43339.01740662,0.000229,2]
[313749135,1707663037989,-3588.35495387,0.000229,2]
[313749137,1707663037998,-165.34553619,0.000229,2]
[313749139,1707663038008,-2452.8327429,0.000229,2]
[313749141,1707663038017,-295.22116606,0.000229,2]
[313749143,1707663038026,-539.95398607,0.000229,2]
[313749145,1707663038036,-181.21,0.000229,2]
[313749147,1707663038045,-216.50171311,0.000229,2]
[313749149,1707663038055,-150.0,0.000229,2]
[313749151,1707663038064,-426.62971932,0.000229,6]
[313749153,1707663038073,-12652.38267672,0.000229,2]
[313749155,1707663038082,-300.0,0.00022903,2]
[313749157,1707663038091,-1000.0,0.00022996,5]
[313749159,1707663038101,-220.2573698,0.00022996,2]
[313749161,1707663038110,-500.0,0.00022996,2]
[313749163,1707663038119,-500.0,0.00022996,2]
[313749165,1707663038128,-500.0,0.00022996,2]
[313749167,1707663038138,-500.0,0.00022996,2]
[313749169,1707663038148,-500.0,0.00022996,2]
[313749171,1707663038157,-500.0,0.00022996,2]
[313749173,1707663038166,-500.0,0.00022996,2]
[313749175,1707663038176,-500.0,0.00022996,2]
[313749177,1707663038186,-500.0,0.00022996,2]
[313749179,1707663038195,-500.0,0.00022996,2]
[313749181,1707663038204,-500.0,0.00022996,2]
[313749183,1707663038213,-500.0,0.00022996,2]
[313749185,1707663038222,-500.0,0.00022996,2]
[313749187,1707663038231,-500.0,0.00022996,2]
[313749189,1707663038240,-500.0,0.00022996,2]
[313749191,1707663038250,-500.0,0.00022996,2]
[313749193,1707663038259,-500.0,0.00022996,2]
[313749195,1707663038268,-500.0,0.00022996,2]
[313749197,1707663038277,-500.0,0.00022996,2]
[313749199,1707663038286,-500.0,0.00022996,2]
[313749201,1707663038295,-500.0,0.00022996,2]
[313749202,1707663038304,-500.0,0.00022996,2]
[313749203,1707663038314,-500.0,0.00022996,2]
[313749204,1707663038323,-500.0,0.00022996,2]
[313749205,1707663038331,-500.0,0.00022996,2]
[313749206,1707663038340,-500.0,0.00022996,2]
[313749207,1707663038351,-500.0,0.00022996,2]
[313749208,1707663038360,-500.0,0.00022996,2]
[313749209,1707663038369,-500.0,0.00022996,2]
[313749210,1707663038377,-500.0,0.00022996,2]
[313749211,1707663038386,-258.24788782,0.00022996,2]
[313749212,1707663038395,-500.0,0.00022996,2]
[313749213,1707663038404,-500.0,0.00022996,2]
[313749214,1707663038413,-835911.94547089,0.00022997,2]
[313749215,1707663038422,-1000.0,0.00022997,5]
[313749216,1707663038433,-1000.0,0.00022997,5]
[313749217,1707663038442,-1000.0,0.00022997,5]
[313749219,1707663038452,-100094.6052698,0.00022997,2]
[313749221,1707663038462,-534.14068219,0.00022998,2]
[313749223,1707663038472,-4588.74334098,0.00022998,2]
[313749224,1707663038482,-317.05062025,0.00022998,2]
[313749225,1707663038492,-212.73792894,0.00022998,2]
[313749226,1707663038501,-1208.94196497,0.00022998,2]
[313749227,1707663038512,-928.56196283,0.00022998,2]
[313749228,1707663038522,-203.56264579,0.00022998,2]
[313749229,1707663038531,-2737.91050118,0.00022998,2]
[313749230,1707663038540,-204.26104597,0.00022998,2]
[313749231,1707663038549,-402.3085143,0.00022998,2]
[313749232,1707663038559,-2316.88234043,0.00022998,2]
[313749233,1707663038568,-365.68214568,0.00022998,2]
[313749234,1707663038577,-19195.47966383,0.00022998,2]
[313749235,1707663038586,-155.0,0.00022998,2]
[313749236,1707663038595,-258.2392527,0.00022998,5]
[313749237,1707663038604,-2542.79903894,0.00022999,2]
[313749238,1707663038614,-150.01,0.00022999,2]
[313749239,1707663038623,-3313.68237718,0.00022999,2]
[313749240,1707663038632,-495341.94366529,0.00022999,2]
[313749241,1707663038641,-1000.0,0.00022999,2]
[313749242,1707663038653,-375.90380562,0.00022999,2]
[313749243,1707663038664,-447.75650072,0.00022999,2]
[313749244,1707663038675,-385.64628155,0.00022999,2]
[313749245,1707663038684,-357.61870175,0.00022999,2]
[313749246,1707663038694,-468.96142728,0.00022999,2]
[313749247,1707663038704,-365.17046565,0.00022999,2]
[313749248,1707663038713,-300.0,0.00022999,2]
[313749249,1707663038724,-300.0,0.00022999,2]
[313749250,1707663038733,-300.0,0.00022999,2]
[313749251,1707663038743,-215.55679663,0.00022999,2]
[313749252,1707663038753,-150.0,0.00022999,2]
[313749253,1707663038763,-150.0,0.00022999,2]
[313749254,1707663038773,-150.0,0.00022999,2]
[313749255,1707663038782,-150.0,0.00022999,2]
[313749256,1707663038791,-150.0,0.00022999,2]
[313749257,1707663038802,-150.0,0.00022999,2]
[313749258,1707663038812,-150.0,0.00022999,2]
[313749259,1707663038821,-150.0,0.00022999,2]
[313749260,1707663038830,-150.0,0.00022999,2]
[313749261,1707663038839,-150.0,0.00022999,2]
[313749262,1707663038848,-150.0,0.00022999,2]
[313749263,1707663038858,-150.0,0.00022999,2]
[313749264,1707663038867,-150.0,0.00022999,2]
[313749265,1707663038876,-150.0,0.00022999,2]
[313749266,1707663038886,-150.0,0.00022999,2]